[Event "*** SCC Grand Prix: Titled Tuesday Blitz"]
[Site "Chess.com"]
[Date "2020.08.25"]
[Round "3"]
[White "suyu28"]
[Black "Miss_JJ20"]
[Result "0-1"]
[WhiteElo "2630"]
[BlackElo "2419"]
[TimeControl "180+1"]
[EndTime "10:32:38 PDT"]
[Termination "Miss_JJ20 won by resignation"]

1. d4 {[%clk 0:03:00.6]} 1... Nf6 {[%clk 0:02:59.7]} 2. c4 {[%clk 0:03:00.8]}
2... e6 {[%clk 0:03:00.2]} 3. Nf3 {[%clk 0:03:00.4]} 3... b6 {[%clk 0:02:59.6]}
4. Nc3 {[%clk 0:03:00.8]} 4... Bb4 {[%clk 0:02:58.5]} 5. Bg5 {[%clk 0:02:57.5]}
5... h6 {[%clk 0:02:57.1]} 6. Bxf6 {[%clk 0:02:57.5]} 6... Qxf6 {[%clk
0:02:56.7]} 7. e3 {[%clk 0:02:57.8]} 7... Bb7 {[%clk 0:02:48.4]} 8. Be2 {[%clk
0:02:57.3]} 8... O-O {[%clk 0:02:46.6]} 9. Rc1 {[%clk 0:02:57.3]} 9... d6 {[%clk
0:02:41.8]} 10. O-O {[%clk 0:02:57.2]} 10... Bxc3 {[%clk 0:02:40.6]} 11. Rxc3
{[%clk 0:02:57.2]} 11... Nd7 {[%clk 0:02:38.7]} 12. Rc1 {[%clk 0:02:57]} 12...
e5 {[%clk 0:02:38.3]} 13. d5 {[%clk 0:02:53.5]} 13... a5 {[%clk 0:02:38]} 14. b3
{[%clk 0:02:52.9]} 14... Qe7 {[%clk 0:02:21.6]} 15. e4 {[%clk 0:02:51.7]} 15...
Nc5 {[%clk 0:02:10.9]} 16. Nd2 {[%clk 0:02:51.6]} 16... Bc8 {[%clk 0:02:10.3]}
17. a3 {[%clk 0:02:51]} 17... f5 {[%clk 0:02:10.1]} 18. exf5 {[%clk 0:02:51]}
18... Bxf5 {[%clk 0:02:11]} 19. Rc3 {[%clk 0:02:44.8]} 19... Rf6 {[%clk
0:01:50.4]} 20. Re3 {[%clk 0:02:43.9]} 20... Raf8 {[%clk 0:01:48.8]} 21. b4
{[%clk 0:02:36.8]} 21... axb4 {[%clk 0:01:44]} 22. axb4 {[%clk 0:02:37.7]} 22...
Nd7 {[%clk 0:01:44.7]} 23. Qb3 {[%clk 0:02:37.4]} 23... Bh7 {[%clk 0:01:41.2]}
24. Bg4 {[%clk 0:02:36]} 24... Bf5 {[%clk 0:01:39.5]} 25. Bf3 {[%clk 0:02:33.5]}
25... g5 {[%clk 0:01:38.4]} 26. h3 {[%clk 0:02:16.4]} 26... Qf7 {[%clk
0:01:36.2]} 27. Qd1 {[%clk 0:02:10.9]} 27... Kg7 {[%clk 0:01:31.6]} 28. Qe2
{[%clk 0:02:10]} 28... Ra8 {[%clk 0:01:29.5]} 29. Be4 {[%clk 0:02:08.5]} 29...
Ra2 {[%clk 0:01:27.5]} 30. Qd3 {[%clk 0:01:58.8]} 30... Nf8 {[%clk 0:01:18.8]}
31. Bxf5 {[%clk 0:01:43.5]} 31... Rxf5 {[%clk 0:01:18.8]} 32. Ne4 {[%clk
0:01:44.4]} 32... Ng6 {[%clk 0:01:14.9]} 33. Ng3 {[%clk 0:01:44.6]} 33... Rfxf2
{[%clk 0:01:11.2]} 34. Re2 {[%clk 0:01:09.5]} 34... Raxe2 {[%clk 0:01:08]} 35.
Qxe2 {[%clk 0:01:08.6]} 35... Rxe2 {[%clk 0:00:47.7]} 36. Rxf7+ {[%clk
0:01:09.5]} 36... Kxf7 {[%clk 0:00:48.3]} 37. Nxe2 {[%clk 0:01:10.1]} 37... Nf4
{[%clk 0:00:47.9]} 38. Nc3 {[%clk 0:01:10.2]} 38... Ke7 {[%clk 0:00:39.7]} 39.
Ne4 {[%clk 0:01:08.5]} 39... Nd3 {[%clk 0:00:36.1]} 40. b5 {[%clk 0:01:01.8]}
40... Nb2 {[%clk 0:00:30.2]} 41. Nd2 {[%clk 0:00:59.3]} 41... Kf6 {[%clk
0:00:26.6]} 42. Kf2 {[%clk 0:00:55.3]} 42... Kf5 {[%clk 0:00:25.5]} 43. Ke3
{[%clk 0:00:50.7]} 43... h5 {[%clk 0:00:22.3]} 44. g3 {[%clk 0:00:44.1]} 44...
g4 {[%clk 0:00:16.6]} 45. h4 {[%clk 0:00:43.1]} 45... Nd1+ {[%clk 0:00:16.3]}
46. Ke2 {[%clk 0:00:39.8]} 46... Nb2 {[%clk 0:00:16.5]} 47. Ke3 {[%clk
0:00:39.5]} 47... e4 {[%clk 0:00:17.1]} 48. Kd4 {[%clk 0:00:34.8]} 48... e3
{[%clk 0:00:16]} 49. Kxe3 {[%clk 0:00:34]} 49... Ke5 {[%clk 0:00:16.6]} 50. Ne4
{[%clk 0:00:19.4]} 50... Nxc4+ {[%clk 0:00:16.6]} 51. Kd3 {[%clk 0:00:19.8]}
51... Nb2+ {[%clk 0:00:15.1]} 52. Ke3 {[%clk 0:00:19.8]} 52... Nd1+ {[%clk
0:00:15.4]} 53. Kd3 {[%clk 0:00:19.6]} 53... Nb2+ {[%clk 0:00:06.6]} 54. Ke3
{[%clk 0:00:19.8]} 54... Nc4+ {[%clk 0:00:06.8]} 55. Kd3 {[%clk 0:00:20.1]}
55... Na3 {[%clk 0:00:07.1]} 56. Nc3 {[%clk 0:00:19.7]} 56... Kf5 {[%clk
0:00:06.4]} 57. Kd4 {[%clk 0:00:18.7]} 57... Kf6 {[%clk 0:00:06.9]} 58. Kd3
{[%clk 0:00:18.6]} 58... Ke5 {[%clk 0:00:06.9]} 59. Ne4 {[%clk 0:00:18.3]} 59...
Nxb5 {[%clk 0:00:06.3]} 60. Ng5 {[%clk 0:00:18.6]} 60... Kxd5 {[%clk 0:00:05]}
61. Nf7 {[%clk 0:00:18.6]} 61... Ke6 {[%clk 0:00:03.8]} 62. Ng5+ {[%clk
0:00:18.5]} 62... Kf5 {[%clk 0:00:04.2]} 63. Kc4 {[%clk 0:00:18.9]} 63... c6
{[%clk 0:00:03.2]} 64. Nf7 {[%clk 0:00:19.3]} 64... d5+ {[%clk 0:00:02.9]} 65.
Kb4 {[%clk 0:00:19.8]} 65... Nc7 {[%clk 0:00:02.8]} 66. Nd8 {[%clk 0:00:19.8]}
66... Ke4 {[%clk 0:00:02.6]} 67. Nxc6 {[%clk 0:00:19.6]} 67... d4 {[%clk
0:00:02.9]} 68. Kb3 {[%clk 0:00:20]} 68... d3 {[%clk 0:00:02.8]} 69. Kc3 {[%clk
0:00:18.8]} 69... Nd5+ {[%clk 0:00:03.1]} 70. Kd2 {[%clk 0:00:18.7]} 70... b5
{[%clk 0:00:03.7]} 71. Na5 {[%clk 0:00:17.4]} 71... b4 {[%clk 0:00:03.6]} 72.
Nb3 {[%clk 0:00:17.8]} 72... Nb6 {[%clk 0:00:03.4]} 73. Nc5+ {[%clk 0:00:18]}
73... Kd4 {[%clk 0:00:03.9]} 74. Nxd3 {[%clk 0:00:18.4]} 74... Nc4+ {[%clk
0:00:04.8]} 75. Ke2 {[%clk 0:00:16.8]} 75... b3 {[%clk 0:00:05.3]} 76. Nb4
{[%clk 0:00:13.9]} 76... b2 {[%clk 0:00:05]} 77. Nc6+ {[%clk 0:00:09.9]} 77...
Ke4 {[%clk 0:00:04.9]} 78. Na5 {[%clk 0:00:09.7]} 78... b1=Q {[%clk 0:00:04.5]}
79. Nxc4 {[%clk 0:00:10.6]} 79... Qc2+ {[%clk 0:00:03.5]} 80. Nd2+ {[%clk
0:00:09.4]} 80... Kd4 {[%clk 0:00:03.7]} 81. Ke1 {[%clk 0:00:10]} 81... Qc1+
{[%clk 0:00:03.1]} 82. Ke2 {[%clk 0:00:10.1]} 82... Qc2 {[%clk 0:00:03.7]} 83.
Ke1 {[%clk 0:00:10.2]} 83... Ke3 {[%clk 0:00:04.3]} 84. Nf1+ {[%clk 0:00:10.3]}
84... Kf3 {[%clk 0:00:04]} 85. Nd2+ {[%clk 0:00:10.6]} 85... Kxg3 {[%clk
0:00:04]} 86. Ke2 {[%clk 0:00:11.1]} 86... Kxh4 {[%clk 0:00:03.9]} 87. Ke3
{[%clk 0:00:11.7]} 87... Qxd2+ {[%clk 0:00:03.4]} 88. Kxd2 {[%clk 0:00:11.9]}
88... Kg3 {[%clk 0:00:04.3]} 89. Ke2 {[%clk 0:00:12.5]} 89... Kh2 {[%clk
0:00:04.6]} 90. Kf1 {[%clk 0:00:13.2]} 90... g3 {[%clk 0:00:05.5]} 91. Ke2
{[%clk 0:00:13.7]} 91... g2 {[%clk 0:00:06.1]} 92. Kf3 {[%clk 0:00:14.6]} 0-1

[Event "*** SCC Grand Prix: Titled Tuesday Blitz"]
[Site "Chess.com"]
[Date "2020.08.25"]
[Round "3"]
[White "Logman74"]
[Black "AnonymousIM2023"]
[Result "0-1"]
[WhiteElo "2392"]
[BlackElo "2599"]
[TimeControl "180+1"]
[EndTime "10:32:45 PDT"]
[Termination "AnonymousIM2023 won on time"]

1. e4 {[%clk 0:03:00.9]} 1... c5 {[%clk 0:02:59.6]} 2. Nf3 {[%clk 0:03:00.3]}
2... Nc6 {[%clk 0:03:00.2]} 3. d4 {[%clk 0:03:00.4]} 3... cxd4 {[%clk
0:03:01.1]} 4. Nxd4 {[%clk 0:03:00.8]} 4... g6 {[%clk 0:03:02]} 5. c4 {[%clk
0:03:00]} 5... Nf6 {[%clk 0:03:02.1]} 6. Nc3 {[%clk 0:02:59.7]} 6... d6 {[%clk
0:03:02.7]} 7. Be3 {[%clk 0:02:59.8]} 7... Ng4 {[%clk 0:03:02.5]} 8. Nxc6 {[%clk
0:02:51.2]} 8... bxc6 {[%clk 0:03:03.4]} 9. Bc1 {[%clk 0:02:35.3]} 9... Qb6
{[%clk 0:03:01.6]} 10. Qc2 {[%clk 0:02:26.9]} 10... Bg7 {[%clk 0:02:52.3]} 11.
h3 {[%clk 0:02:10.4]} 11... Nf6 {[%clk 0:02:51.8]} 12. Be2 {[%clk 0:02:05.8]}
12... O-O {[%clk 0:02:51.7]} 13. O-O {[%clk 0:02:05.3]} 13... Rb8 {[%clk
0:02:52]} 14. Rb1 {[%clk 0:01:34.9]} 14... Nd7 {[%clk 0:02:14.4]} 15. Be3 {[%clk
0:01:33.6]} 15... Qa5 {[%clk 0:02:11.8]} 16. Bd2 {[%clk 0:01:32.3]} 16... Qc7
{[%clk 0:02:06.5]} 17. b3 {[%clk 0:01:31.5]} 17... a5 {[%clk 0:02:06.6]} 18.
Rbd1 {[%clk 0:01:29.5]} 18... Nc5 {[%clk 0:02:03.9]} 19. Be3 {[%clk 0:01:28]}
19... a4 {[%clk 0:01:50.9]} 20. Nxa4 {[%clk 0:01:19]} 20... Nxa4 {[%clk
0:01:49.8]} 21. bxa4 {[%clk 0:01:19.4]} 21... c5 {[%clk 0:01:48.8]} 22. Rb1
{[%clk 0:01:14.6]} 22... Bd7 {[%clk 0:01:42.5]} 23. Bd2 {[%clk 0:01:13.7]} 23...
Bd4 {[%clk 0:01:16.2]} 24. a5 {[%clk 0:01:12.7]} 24... Bc6 {[%clk 0:01:16.1]}
25. Kh1 {[%clk 0:01:06.7]} 25... Rxb1 {[%clk 0:01:15.6]} 26. Rxb1 {[%clk
0:00:55.9]} 26... Bxf2 {[%clk 0:01:15]} 27. Rb6 {[%clk 0:00:51.7]} 27... Bd4
{[%clk 0:01:12.8]} 28. Bf3 {[%clk 0:00:46.3]} 28... Kg7 {[%clk 0:00:34.6]} 29.
Qb3 {[%clk 0:00:38.9]} 29... Ra8 {[%clk 0:00:33.3]} 30. a6 {[%clk 0:00:37.4]}
30... Qc8 {[%clk 0:00:18.8]} 31. Qa3 {[%clk 0:00:25.3]} 31... Qc7 {[%clk
0:00:18.9]} 32. Ba5 {[%clk 0:00:23.3]} 32... Qc8 {[%clk 0:00:12.9]} 33. Bc3
{[%clk 0:00:20.5]} 33... Ra7 {[%clk 0:00:12.2]} 34. Bxd4+ {[%clk 0:00:19.3]}
34... cxd4 {[%clk 0:00:12.7]} 35. Qb2 {[%clk 0:00:19.3]} 35... e5 {[%clk
0:00:12.1]} 36. Qa3 {[%clk 0:00:18]} 36... Qc7 {[%clk 0:00:10.8]} 37. Qb4 {[%clk
0:00:17.9]} 37... Qd7 {[%clk 0:00:06.5]} 38. a3 {[%clk 0:00:16.8]} 38... h5
{[%clk 0:00:04.9]} 39. a4 {[%clk 0:00:16.5]} 39... h4 {[%clk 0:00:04.9]} 40. a5
{[%clk 0:00:16.3]} 40... Qc7 {[%clk 0:00:03.2]} 41. c5 {[%clk 0:00:15.7]} 41...
dxc5 {[%clk 0:00:01.2]} 42. Qxc5 {[%clk 0:00:15.7]} 42... Bd7 {[%clk 0:00:01.8]}
43. Qxc7 {[%clk 0:00:13.1]} 43... Rxc7 {[%clk 0:00:02.7]} 44. Rb7 {[%clk
0:00:12.6]} 44... Rc1+ {[%clk 0:00:03.4]} 45. Kh2 {[%clk 0:00:12.8]} 45... Bc6
{[%clk 0:00:04.3]} 46. Rc7 {[%clk 0:00:12.3]} 46... Ra1 {[%clk 0:00:01.1]} 47.
Rxc6 {[%clk 0:00:11.7]} 47... Rxa5 {[%clk 0:00:02]} 48. Rd6 {[%clk 0:00:11.2]}
48... f5 {[%clk 0:00:02.4]} 49. exf5 {[%clk 0:00:10.7]} 49... gxf5 {[%clk
0:00:03.3]} 50. Rd7+ {[%clk 0:00:10.4]} 50... Kf6 {[%clk 0:00:03.6]} 51. a7
{[%clk 0:00:07.8]} 51... e4 {[%clk 0:00:04.1]} 52. Bh5 {[%clk 0:00:06.3]} 52...
Ke6 {[%clk 0:00:04.1]} 53. Rb7 {[%clk 0:00:05.2]} 53... d3 {[%clk 0:00:04.4]}
54. Bf7+ {[%clk 0:00:04.5]} 54... Kd6 {[%clk 0:00:04.9]} 55. Bb3 {[%clk
0:00:03.5]} 55... d2 {[%clk 0:00:05]} 56. Rf7 {[%clk 0:00:02.9]} 56... e3 {[%clk
0:00:05.2]} 57. Bd1 {[%clk 0:00:01.6]} 57... Ke5 {[%clk 0:00:05]} 58. Bf3 {[%clk
0:00:01.5]} 58... f4 {[%clk 0:00:05.2]} 59. Rd7 {[%clk 0:00:01.7]} 59... Ke6
{[%clk 0:00:04.7]} 60. a8=Q {[%clk 0:00:01.5]} 60... Rxa8 {[%clk 0:00:04.2]} 61.
Bxa8 {[%clk 0:00:01.3]} 61... Kxd7 {[%clk 0:00:04.7]} 62. Bf3 {[%clk 0:00:01.7]}
62... Kd6 {[%clk 0:00:05]} 63. Kg1 {[%clk 0:00:02.1]} 63... Kc5 {[%clk
0:00:05.7]} 64. Kf1 {[%clk 0:00:02.6]} 64... Kc4 {[%clk 0:00:06.4]} 65. Ke2
{[%clk 0:00:03.1]} 65... Kc3 {[%clk 0:00:06.7]} 66. Kd1 {[%clk 0:00:03.2]} 66...
Kd3 {[%clk 0:00:07]} 67. Be2+ {[%clk 0:00:03.6]} 67... Kc3 {[%clk 0:00:07.5]}
68. Bb5 {[%clk 0:00:02.9]} 68... Kd4 {[%clk 0:00:07.1]} 69. Ba6 {[%clk
0:00:02.8]} 69... Ke4 {[%clk 0:00:07.4]} 70. Ke2 {[%clk 0:00:02.9]} 70... Ke5
{[%clk 0:00:06.4]} 71. Bb7 {[%clk 0:00:02.9]} 71... Kd4 {[%clk 0:00:06.7]} 72.
Ba6 {[%clk 0:00:03]} 72... Kc3 {[%clk 0:00:07.1]} 73. Kd1 {[%clk 0:00:02.6]}
73... Kb4 {[%clk 0:00:06.6]} 74. Be2 {[%clk 0:00:02.9]} 74... Kc5 {[%clk
0:00:06.8]} 75. Bd3 {[%clk 0:00:02.8]} 75... Kd5 {[%clk 0:00:07.1]} 76. Bc2
{[%clk 0:00:03.2]} 76... Ke5 {[%clk 0:00:07.5]} 77. Ke2 {[%clk 0:00:03.6]} 77...
Kd4 {[%clk 0:00:07.6]} 78. Bd1 {[%clk 0:00:03.4]} 78... Kc3 {[%clk 0:00:07.8]}
79. Ba4 {[%clk 0:00:03]} 79... Kb4 {[%clk 0:00:08]} 80. Bd7 {[%clk 0:00:03.3]}
80... Ka3 {[%clk 0:00:08.2]} 81. Bg4 {[%clk 0:00:03.6]} 81... Kb2 {[%clk
0:00:08.5]} 82. Kd1 {[%clk 0:00:03.9]} 82... Kb1 {[%clk 0:00:08.8]} 83. Bh5
{[%clk 0:00:04.3]} 83... Kb2 {[%clk 0:00:08.8]} 84. Bg6 {[%clk 0:00:04.5]} 84...
Kb3 {[%clk 0:00:08.9]} 85. Bf5 {[%clk 0:00:03.3]} 85... Kc3 {[%clk 0:00:08.9]}
86. Bb1 {[%clk 0:00:02.3]} 86... Kc4 {[%clk 0:00:07.7]} 87. Ke2 {[%clk
0:00:01.7]} 87... Kb3 {[%clk 0:00:07.6]} 0-1

[Event "*** SCC Grand Prix: Titled Tuesday Blitz"]
[Site "Chess.com"]
[Date "2020.08.25"]
[Round "3"]
[White "AndrewMaco"]
[Black "IMAghasiyevKamal"]
[Result "1/2-1/2"]
[WhiteElo "2718"]
[BlackElo "2429"]
[TimeControl "180+1"]
[EndTime "10:32:46 PDT"]
[Termination "Game drawn by repetition"]

1. e4 {[%clk 0:03:00.9]} 1... e5 {[%clk 0:02:58.7]} 2. Nf3 {[%clk 0:03:00.4]}
2... Nc6 {[%clk 0:02:58]} 3. Bb5 {[%clk 0:03:00.9]} 3... a6 {[%clk 0:02:57]} 4.
Ba4 {[%clk 0:03:01.2]} 4... Nf6 {[%clk 0:02:56.5]} 5. O-O {[%clk 0:03:01.2]}
5... Be7 {[%clk 0:02:56.4]} 6. Re1 {[%clk 0:03:00.2]} 6... b5 {[%clk 0:02:56.4]}
7. Bb3 {[%clk 0:02:59.7]} 7... d6 {[%clk 0:02:56.7]} 8. c3 {[%clk 0:03:00]} 8...
O-O {[%clk 0:02:56.8]} 9. h3 {[%clk 0:02:59.1]} 9... Bb7 {[%clk 0:02:43.8]} 10.
d4 {[%clk 0:02:57.4]} 10... Nd7 {[%clk 0:02:43.8]} 11. Nbd2 {[%clk 0:02:54.5]}
11... Bf6 {[%clk 0:02:40]} 12. Nf1 {[%clk 0:02:53.3]} 12... Re8 {[%clk 0:02:16]}
13. Ng3 {[%clk 0:02:52.4]} 13... exd4 {[%clk 0:02:07.4]} 14. cxd4 {[%clk
0:02:53.3]} 14... Na5 {[%clk 0:02:07.2]} 15. Bc2 {[%clk 0:02:52.3]} 15... c5
{[%clk 0:02:06.4]} 16. Nh5 {[%clk 0:02:29.4]} 16... cxd4 {[%clk 0:01:53.9]} 17.
Nxf6+ {[%clk 0:02:27.8]} 17... Nxf6 {[%clk 0:01:49.2]} 18. Qxd4 {[%clk
0:02:27.2]} 18... Nc6 {[%clk 0:01:44.6]} 19. Qc3 {[%clk 0:02:11.2]} 19... Rc8
{[%clk 0:01:40.1]} 20. Qd2 {[%clk 0:01:53.5]} 20... Ne5 {[%clk 0:01:35.7]} 21.
Nxe5 {[%clk 0:01:49]} 21... dxe5 {[%clk 0:01:32.8]} 22. Bb1 {[%clk 0:01:36.6]}
22... Qb6 {[%clk 0:01:18]} 23. Qe2 {[%clk 0:01:14.5]} 23... h6 {[%clk
0:00:56.9]} 24. Be3 {[%clk 0:01:07.7]} 24... Qe6 {[%clk 0:00:55.2]} 25. f3
{[%clk 0:00:59.5]} 25... Nh5 {[%clk 0:00:52.4]} 26. Qf2 {[%clk 0:00:56.6]} 26...
Qf6 {[%clk 0:00:47.1]} 27. Bd3 {[%clk 0:00:53.9]} 27... Nf4 {[%clk 0:00:46.5]}
28. Bf1 {[%clk 0:00:53.9]} 28... Red8 {[%clk 0:00:39.7]} 29. Rad1 {[%clk
0:00:50.2]} 29... Ne6 {[%clk 0:00:36.4]} 30. Rxd8+ {[%clk 0:00:45.5]} 30... Rxd8
{[%clk 0:00:35.3]} 31. Rc1 {[%clk 0:00:45.6]} 31... Rc8 {[%clk 0:00:30.6]} 32.
Rxc8+ {[%clk 0:00:43.8]} 32... Bxc8 {[%clk 0:00:30.7]} 33. Qc2 {[%clk
0:00:44.5]} 33... Qd8 {[%clk 0:00:29.7]} 34. Kf2 {[%clk 0:00:41.1]} 34... Nd4
{[%clk 0:00:28.5]} 35. Qc5 {[%clk 0:00:40.4]} 35... f6 {[%clk 0:00:27.3]} 36. a4
{[%clk 0:00:38.5]} 36... bxa4 {[%clk 0:00:26]} 37. Qc4+ {[%clk 0:00:38.1]} 37...
Be6 {[%clk 0:00:25.8]} 38. Qxa4 {[%clk 0:00:38.6]} 38... a5 {[%clk 0:00:21.4]}
39. Kg3 {[%clk 0:00:21.1]} 39... Kh7 {[%clk 0:00:20.3]} 40. h4 {[%clk
0:00:17.4]} 40... h5 {[%clk 0:00:18.1]} 41. Kh2 {[%clk 0:00:17.8]} 41... Qb6
{[%clk 0:00:17]} 42. Qa3 {[%clk 0:00:15.7]} 42... Qb4 {[%clk 0:00:13.9]} 43.
Qxb4 {[%clk 0:00:14.7]} 43... axb4 {[%clk 0:00:14.2]} 44. Bd2 {[%clk 0:00:15]}
44... b3 {[%clk 0:00:13.8]} 45. Kg3 {[%clk 0:00:15.5]} 45... g6 {[%clk
0:00:13.3]} 46. Kf2 {[%clk 0:00:15.3]} 46... f5 {[%clk 0:00:13.3]} 47. Ke3
{[%clk 0:00:13.9]} 47... f4+ {[%clk 0:00:12.9]} 48. Kd3 {[%clk 0:00:14.1]} 48...
g5 {[%clk 0:00:13]} 49. hxg5 {[%clk 0:00:13.6]} 49... Nc6 {[%clk 0:00:12.9]} 50.
Kc3 {[%clk 0:00:12.6]} 50... Kg6 {[%clk 0:00:12.3]} 51. Bb5 {[%clk 0:00:11.9]}
51... Nd4 {[%clk 0:00:11.8]} 52. Bf1 {[%clk 0:00:11.6]} 52... Kxg5 {[%clk
0:00:11.6]} 53. Be1 {[%clk 0:00:12.2]} 53... h4 {[%clk 0:00:11.3]} 54. Bf2
{[%clk 0:00:12.9]} 54... h3 {[%clk 0:00:10.5]} 55. gxh3 {[%clk 0:00:13.2]} 55...
Nxf3 {[%clk 0:00:10.4]} 56. Bb5 {[%clk 0:00:12.2]} 56... Bxh3 {[%clk 0:00:10]}
57. Kxb3 {[%clk 0:00:12.6]} 57... Be6+ {[%clk 0:00:09.9]} 58. Kc3 {[%clk
0:00:13.1]} 58... Kf6 {[%clk 0:00:10.8]} 59. Bc6 {[%clk 0:00:13]} 59... Ng5
{[%clk 0:00:10.3]} 60. b4 {[%clk 0:00:12.8]} 60... Bd7 {[%clk 0:00:09.2]} 61.
Bd5 {[%clk 0:00:11.6]} 61... Be6 {[%clk 0:00:08.5]} 62. Ba8 {[%clk 0:00:09.7]}
62... f3 {[%clk 0:00:08.1]} 63. Kd2 {[%clk 0:00:08.7]} 63... Bc4 {[%clk
0:00:06]} 64. Ke3 {[%clk 0:00:08.4]} 64... Be2 {[%clk 0:00:06.2]} 65. Bh4 {[%clk
0:00:09]} 65... Kg6 {[%clk 0:00:06.3]} 66. Bc6 {[%clk 0:00:08.5]} 66... Ne6
{[%clk 0:00:06.2]} 67. Bg3 {[%clk 0:00:06.7]} 67... Kf6 {[%clk 0:00:06.1]} 68.
Bd5 {[%clk 0:00:06]} 68... Nd4 {[%clk 0:00:06.1]} 69. Bh4+ {[%clk 0:00:06.5]}
69... Kg6 {[%clk 0:00:05.6]} 70. Bf2 {[%clk 0:00:06.6]} 70... Kf6 {[%clk
0:00:06.1]} 71. Bb7 {[%clk 0:00:05]} 71... Nc2+ {[%clk 0:00:06.3]} 72. Kd2
{[%clk 0:00:04.9]} 72... Nxb4 {[%clk 0:00:07.2]} 73. Bc8 {[%clk 0:00:04.2]}
73... Nd3 {[%clk 0:00:07.1]} 74. Bh4+ {[%clk 0:00:04.3]} 74... Kg6 {[%clk
0:00:07.5]} 75. Bf5+ {[%clk 0:00:04.3]} 75... Kh5 {[%clk 0:00:07.4]} 76. Bg3
{[%clk 0:00:04.9]} 76... Nf4 {[%clk 0:00:07.5]} 77. Ke3 {[%clk 0:00:05.1]} 77...
Ng6 {[%clk 0:00:07]} 78. Kf2 {[%clk 0:00:05]} 78... Nf4 {[%clk 0:00:07.3]} 79.
Bh2 {[%clk 0:00:04.9]} 79... Kg5 {[%clk 0:00:07.8]} 80. Bg3 {[%clk 0:00:04.5]}
80... Nd3+ {[%clk 0:00:08.3]} 81. Ke3 {[%clk 0:00:04]} 81... Nf4 {[%clk
0:00:08.7]} 82. Bxf4+ {[%clk 0:00:04.3]} 82... exf4+ {[%clk 0:00:08.7]} 83. Kf2
{[%clk 0:00:05.2]} 83... Bd3 {[%clk 0:00:08.4]} 84. Bh3 {[%clk 0:00:04.8]} 84...
Bxe4 {[%clk 0:00:08.7]} 85. Bf1 {[%clk 0:00:05.4]} 85... Kf6 {[%clk 0:00:09]}
86. Bh3 {[%clk 0:00:05.7]} 86... Ke5 {[%clk 0:00:09.9]} 87. Bg4 {[%clk
0:00:06.1]} 87... Kd4 {[%clk 0:00:10.8]} 88. Bh3 {[%clk 0:00:06.6]} 88... Ke5
{[%clk 0:00:11.2]} 89. Bf1 {[%clk 0:00:05.9]} 89... Kd4 {[%clk 0:00:12.1]} 90.
Bh3 {[%clk 0:00:04.7]} 90... Ke5 {[%clk 0:00:13]} 1/2-1/2